[Event "Polofinale MCR junioru 2023"]
[Site "Czech Republic"]
[Date "2023.11.14"]
[Round "5.31"]
[White "Vana, Jan"]
[Black "Jurok, Vojtech"]
[Result "1/2-1/2"]
[TimeControl "90 min per 40 moves + 15 min + 30 sec / move from move 1"]
[WhiteFideId "23726016"]
[BlackFideId "23741023"]
[WhiteElo "1965"]
[BlackElo "1801"]

1. e4 {[%clk 01:30:58]} {[%emt 00:00:01]} e6 {[%clk 01:30:50]} {[%emt
00:00:11]} 2. d4 {[%clk 01:31:23]} {[%emt 00:00:05]} d5 {[%clk 01:31:16]}
{[%emt 00:00:04]} 3. Nd2 {[%clk 01:31:49]} {[%emt 00:00:03]} Nc6 {[%clk
01:31:41]} {[%emt 00:00:05]} 4. Ngf3 {[%clk 01:32:15]} {[%emt 00:00:04]} Nf6
{[%clk 01:32:00]} {[%emt 00:00:11]} 5. e5 {[%clk 01:32:42]} {[%emt 00:00:03]}
Nd7 {[%clk 01:32:21]} {[%emt 00:00:10]} 6. Be2 {[%clk 01:33:06]} {[%emt
00:00:05]} f6 {[%clk 01:32:35]} {[%emt 00:00:16]} 7. exf6 {[%clk 01:33:31]}
{[%emt 00:00:05]} Qxf6 {[%clk 01:33:00]} {[%emt 00:00:05]} 8. Nf1 {[%clk
01:33:54]} {[%emt 00:00:07]} Bd6 {[%clk 01:32:59]} {[%emt 00:00:30]} 9. Ne3
{[%clk 01:33:21]} {[%emt 00:01:03]} O-O {[%clk 01:33:21]} {[%emt 00:00:09]} 10.
c4 {[%clk 01:30:07]} {[%emt 00:03:43]} Qf7 {[%clk 01:27:29]} {[%emt 00:06:23]}
11. O-O {[%clk 01:25:24]} {[%emt 00:05:13]} Nf6 {[%clk 01:27:18]} {[%emt
00:00:41]} 12. c5 {[%clk 01:22:28]} {[%emt 00:03:26]} Be7 {[%clk 01:26:17]}
{[%emt 00:01:30]} 13. Rb1 {[%clk 01:20:45]} {[%emt 00:02:13]} a5 {[%clk
01:18:48]} {[%emt 00:08:00]} 14. a3 {[%clk 01:16:36]} {[%emt 00:04:40]} Bd7
{[%clk 01:14:26]} {[%emt 00:04:51]} 15. b4 {[%clk 01:15:00]} {[%emt 00:02:06]}
axb4 {[%clk 01:13:17]} {[%emt 00:01:40]} 16. axb4 {[%clk 01:15:22]} {[%emt
00:00:06]} Ne4 {[%clk 00:56:05]} {[%emt 00:17:42]} 17. b5 {[%clk 00:58:42]}
{[%emt 00:17:11]} Nc3 {[%clk 00:45:40]} {[%emt 00:10:54]} 18. Qd3 {[%clk
00:47:32]} {[%emt 00:11:40]} Nxe2+ {[%clk 00:44:59]} {[%emt 00:01:11]} 19. Qxe2
{[%clk 00:44:07]} {[%emt 00:03:54]} Na7 {[%clk 00:45:03]} {[%emt 00:00:26]} 20.
Ne5 {[%clk 00:25:22]} {[%emt 00:19:15]} Qe8 {[%clk 00:45:10]} {[%emt 00:00:23]}
21. Nxd7 {[%clk 00:21:09]} {[%emt 00:04:44]} Qxd7 {[%clk 00:45:34]} {[%emt
00:00:06]} 22. Ng4 {[%clk 00:20:21]} {[%emt 00:01:17]} Bf6 {[%clk 00:38:36]}
{[%emt 00:07:28]} 23. Nxf6+ {[%clk 00:17:17]} {[%emt 00:03:33]} Rxf6 {[%clk
00:38:48]} {[%emt 00:00:19]} 24. Bd2 {[%clk 00:16:30]} {[%emt 00:01:18]} Rff8
{[%clk 00:30:22]} {[%emt 00:08:56]} 25. Rfe1 {[%clk 00:15:01]} {[%emt
00:01:58]} Rae8 {[%clk 00:22:19]} {[%emt 00:08:33]} 26. f4 {[%clk 00:12:50]}
{[%emt 00:02:40]} c6 {[%clk 00:19:51]} {[%emt 00:02:58]} 27. bxc6 {[%clk
00:10:32]} {[%emt 00:02:48]} bxc6 {[%clk 00:19:37]} {[%emt 00:00:44]} 28. Qd3
{[%clk 00:06:31]} {[%emt 00:04:32]} Nb5 {[%clk 00:18:10]} {[%emt 00:01:57]} 29.
g3 {[%clk 00:02:11]} {[%emt 00:04:50]} Ra8 {[%clk 00:15:15]} {[%emt 00:03:25]}
30. Ra1 {[%clk 00:02:11]} {[%emt 00:00:30]} g6 {[%clk 00:09:42]} {[%emt
00:06:03]} 31. h4 {[%clk 00:01:29]} {[%emt 00:01:12]} Rxa1 {[%clk 00:08:20]}
{[%emt 00:01:51]} 32. Rxa1 {[%clk 00:01:33]} {[%emt 00:00:26]} Qg7 {[%clk
00:08:21]} {[%emt 00:00:29]} 33. Bc3 {[%clk 00:01:06]} {[%emt 00:00:58]} Qf7
{[%clk 00:05:17]} {[%emt 00:03:34]} 34. Kf2 {[%clk 00:00:34]} {[%emt 00:01:02]}
Qb7 {[%clk 00:02:55]} {[%emt 00:02:52]} 35. Qe3 {[%clk 00:00:37]} {[%emt
00:00:26]} Qf7 {[%clk 00:02:21]} {[%emt 00:01:04]} 36. Ra6 {[%clk 00:00:34]}
{[%emt 00:00:35]} Rc8 {[%clk 00:02:28]} {[%emt 00:00:23]} 37. Ba1 {[%clk
00:00:33]} {[%emt 00:00:31]} Qf5 {[%clk 00:02:16]} {[%emt 00:00:42]} 38. Kf3
{[%clk 00:00:35]} {[%emt 00:00:29]} h5 {[%clk 00:01:02]} {[%emt 00:01:44]} 39.
Ra2 {[%clk 00:00:35]} {[%emt 00:00:30]} Re8 {[%clk 00:00:52]} {[%emt 00:00:39]}
40. Re2 {[%clk 00:00:33]} {[%emt 00:00:32]} Kf7 {[%clk 00:00:35]} {[%emt
00:00:47]} 41. Qb3 {[%clk 00:00:34]} {[%emt 00:00:29]} Ra8 {[%clk 00:15:31]}
{[%emt 00:01:05]} 42. Ra2 {[%clk 00:04:35]} {[%emt 00:12:30]} Rxa2 {[%clk
00:14:30]} {[%emt 00:01:30]} 43. Qxa2 {[%clk 00:05:03]} {[%emt 00:00:02]} Qe4+
{[%clk 00:14:14]} {[%emt 00:00:45]} 44. Kf2 {[%clk 00:04:51]} {[%emt 00:00:42]}
Nxd4 {[%clk 00:12:23]} {[%emt 00:02:22]} 45. Qa7+ {[%clk 00:04:18]} {[%emt
00:01:03]} Kf6 {[%clk 00:05:23]} {[%emt 00:07:30]} 46. Qb8 {[%clk 00:03:38]}
{[%emt 00:01:09]} Qf3+ {[%clk 00:05:26]} {[%emt 00:00:27]} 47. Kg1 {[%clk
00:04:04]} {[%emt 00:00:04]} Qxg3+ {[%clk 00:05:20]} {[%emt 00:00:36]} 48. Kf1
{[%clk 00:04:00]} {[%emt 00:00:34]} 1/2-1/2

[Event "Polofinale MCR junioru 2023"]
[Site "Czech Republic"]
[Date "2023.11.14"]
[Round "5.32"]
[White "Mydlar, Matej"]
[Black "Lieber, Lukas"]
[Result "1-0"]
[TimeControl "90 min per 40 moves + 15 min + 30 sec / move from move 1"]
[WhiteFideId "23735074"]
[BlackFideId "23700688"]
[WhiteElo "1809"]
[BlackElo "1959"]

1. e4 {[%clk 01:30:56]} {[%emt 00:00:03]} c6 {[%clk 01:30:54]} {[%emt
00:00:06]} 2. d4 {[%clk 01:31:13]} {[%emt 00:00:13]} d5 {[%clk 01:31:21]}
{[%emt 00:00:03]} 3. exd5 {[%clk 01:31:06]} {[%emt 00:00:37]} cxd5 {[%clk
01:31:49]} {[%emt 00:00:03]} 4. Bd3 {[%clk 01:30:48]} {[%emt 00:00:48]} Nc6
{[%clk 01:32:11]} {[%emt 00:00:08]} 5. c3 {[%clk 01:30:51]} {[%emt 00:00:26]}
g6 {[%clk 01:32:40]} {[%emt 00:00:02]} 6. Bf4 {[%clk 01:30:12]} {[%emt
00:01:08]} Bg7 {[%clk 01:33:08]} {[%emt 00:00:03]} 7. Ne2 {[%clk 01:28:39]}
{[%emt 00:02:02]} Nh6 {[%clk 01:33:31]} {[%emt 00:00:07]} 8. Nd2 {[%clk
01:28:00]} {[%emt 00:01:09]} O-O {[%clk 01:33:13]} {[%emt 00:00:49]} 9. O-O
{[%clk 01:27:56]} {[%emt 00:00:33]} f6 {[%clk 01:33:41]} {[%emt 00:00:03]} 10.
h3 {[%clk 01:22:50]} {[%emt 00:05:35]} Nf7 {[%clk 01:34:09]} {[%emt 00:00:02]}
11. Bh2 {[%clk 01:19:22]} {[%emt 00:03:44]} e5 {[%clk 01:33:37]} {[%emt
00:01:16]} 12. dxe5 {[%clk 01:18:54]} {[%emt 00:00:59]} fxe5 {[%clk 01:33:14]}
{[%emt 00:00:53]} 13. Nb3 {[%clk 01:14:38]} {[%emt 00:04:46]} Nd6 {[%clk
01:31:35]} {[%emt 00:02:08]} 14. a4 {[%clk 01:06:05]} {[%emt 00:09:04]} e4
{[%clk 01:31:00]} {[%emt 00:01:05]} 15. Bb5 {[%clk 01:06:01]} {[%emt 00:00:34]}
Nf5 {[%clk 01:30:44]} {[%emt 00:00:46]} 16. Nf4 {[%clk 01:05:21]} {[%emt
00:01:09]} a6 {[%clk 01:29:40]} {[%emt 00:01:34]} 17. Be2 {[%clk 01:03:47]}
{[%emt 00:02:04]} d4 {[%clk 01:29:21]} {[%emt 00:00:49]} 18. Bc4+ {[%clk
01:01:47]} {[%emt 00:02:30]} Kh8 {[%clk 01:29:46]} {[%emt 00:00:03]} 19. Nc5
{[%clk 00:58:43]} {[%emt 00:03:35]} Ne5 {[%clk 01:27:05]} {[%emt 00:03:12]} 20.
Nfe6 {[%clk 00:58:01]} {[%emt 00:01:13]} Qe7 {[%clk 01:26:10]} {[%emt
00:01:24]} 21. Ba2 {[%clk 00:56:23]} {[%emt 00:02:08]} Bxe6 {[%clk 01:24:47]}
{[%emt 00:01:54]} 22. Nxe6 {[%clk 00:55:29]} {[%emt 00:01:24]} Rfd8 {[%clk
01:25:16]} {[%emt 00:00:02]} 23. Qe2 {[%clk 00:49:37]} {[%emt 00:06:22]} e3
{[%clk 01:10:59]} {[%emt 00:14:47]} 24. cxd4 {[%clk 00:45:27]} {[%emt
00:04:40]} exf2+ {[%clk 01:06:36]} {[%emt 00:04:53]} 25. Rxf2 {[%clk 00:44:02]}
{[%emt 00:01:54]} Nxd4 {[%clk 01:05:18]} {[%emt 00:01:48]} 26. Qxe5 {[%clk
00:43:10]} {[%emt 00:01:23]} Nxe6 {[%clk 01:03:04]} {[%emt 00:02:44]} 27. Qxe6
{[%clk 00:43:04]} {[%emt 00:00:35]} Qxe6 {[%clk 01:02:55]} {[%emt 00:00:39]} 28.
Bxe6 {[%clk 00:43:26]} {[%emt 00:00:08]} Bd4 {[%clk 01:03:22]} {[%emt
00:00:03]} 29. Kh1 {[%clk 00:43:35]} {[%emt 00:00:21]} Re8 {[%clk 01:02:33]}
{[%emt 00:01:19]} 30. Re2 {[%clk 00:43:53]} {[%emt 00:00:12]} b6 {[%clk
00:59:56]} {[%emt 00:03:08]} 31. Rae1 {[%clk 00:44:07]} {[%emt 00:00:16]} Ra7
{[%clk 00:59:18]} {[%emt 00:01:07]} 32. Bc4 {[%clk 00:44:18]} {[%emt 00:00:19]}
Rxe2 {[%clk 00:58:59]} {[%emt 00:00:49]} 33. Rxe2 {[%clk 00:44:40]} {[%emt
00:00:09]} b5 {[%clk 00:59:26]} {[%emt 00:00:04]} 34. Bb3 {[%clk 00:44:26]}
{[%emt 00:00:43]} Rd7 {[%clk 00:57:01]} {[%emt 00:02:56]} 35. axb5 {[%clk
00:43:24]} {[%emt 00:01:32]} axb5 {[%clk 00:57:28]} {[%emt 00:00:03]} 36. Bf4
{[%clk 00:39:52]} {[%emt 00:04:01]} Kg7 {[%clk 00:57:05]} {[%emt 00:00:54]} 37.
Rd2 {[%clk 00:38:54]} {[%emt 00:01:28]} Kf6 {[%clk 00:56:17]} {[%emt 00:01:19]}
38. Be3 {[%clk 00:39:14]} {[%emt 00:00:09]} Ke5 {[%clk 00:56:02]} {[%emt
00:00:45]} 39. Bxd4+ {[%clk 00:39:38]} {[%emt 00:00:06]} Rxd4 {[%clk 00:56:28]}
{[%emt 00:00:04]} 40. Rxd4 {[%clk 00:39:57]} {[%emt 00:00:12]} Kxd4 {[%clk
00:56:57]} {[%emt 00:00:01]} 41. Kh2 {[%clk 00:40:14]} {[%emt 00:00:11]} Kc5
{[%clk 00:56:39]} {[%emt 00:00:49]} 42. Bg8 {[%clk 00:40:38]} {[%emt 00:00:06]}
h6 {[%clk 00:56:42]} {[%emt 00:00:28]} 43. Kg3 {[%clk 00:41:04]} {[%emt
00:00:04]} Kd4 {[%clk 00:56:55]} {[%emt 00:00:16]} 44. Kf4 {[%clk 00:41:24]}
{[%emt 00:00:10]} 1-0

[Event "Polofinale MCR junioru 2023"]
[Site "Czech Republic"]
[Date "2023.11.14"]
[Round "5.33"]
[White "Slaby, Matej"]
[Black "Gregor, Alexandr"]
[Result "0-1"]
[TimeControl "90 min per 40 moves + 15 min + 30 sec / move from move 1"]
[WhiteFideId "23734876"]
[BlackFideId "23735813"]
[WhiteElo "1940"]
[BlackElo "1601"]

1. Nf3 {[%clk 01:31:15]} {[%emt 00:00:04]} d5 {[%clk 01:31:20]} {[%emt
00:00:10]} 2. d4 {[%clk 01:31:38]} {[%emt 00:00:06]} Nf6 {[%clk 01:30:48]}
{[%emt 00:01:02]} 3. e3 {[%clk 01:31:57]} {[%emt 00:00:11]} Bg4 {[%clk
01:27:29]} {[%emt 00:03:49]} 4. b3 {[%clk 01:30:22]} {[%emt 00:02:04]} e6
{[%clk 01:27:19]} {[%emt 00:00:41]} 5. Bb2 {[%clk 01:30:36]} {[%emt 00:00:16]}
Bd6 {[%clk 01:27:07]} {[%emt 00:00:42]} 6. Nbd2 {[%clk 01:30:46]} {[%emt
00:00:20]} O-O {[%clk 01:26:39]} {[%emt 00:00:58]} 7. Bd3 {[%clk 01:30:18]}
{[%emt 00:00:57]} Nbd7 {[%clk 01:26:10]} {[%emt 00:01:01]} 8. O-O {[%clk
01:30:15]} {[%emt 00:00:32]} c5 {[%clk 01:20:15]} {[%emt 00:06:26]} 9. c4
{[%clk 01:28:45]} {[%emt 00:02:00]} cxd4 {[%clk 01:14:16]} {[%emt 00:06:29]} 10.
exd4 {[%clk 01:29:05]} {[%emt 00:00:09]} Bf4 {[%clk 01:08:52]} {[%emt
00:05:55]} 11. Qc2 {[%clk 01:22:53]} {[%emt 00:06:41]} Rc8 {[%clk 01:06:42]}
{[%emt 00:02:40]} 12. g3 {[%clk 01:01:36]} {[%emt 00:21:47]} Bxd2 {[%clk
01:04:27]} {[%emt 00:02:45]} 13. Nxd2 {[%clk 01:02:04]} {[%emt 00:00:02]} Qc7
{[%clk 01:00:07]} {[%emt 00:04:50]} 14. Rae1 {[%clk 01:00:39]} {[%emt
00:01:55]} Bh3 {[%clk 01:00:25]} {[%emt 00:00:13]} 15. f4 {[%clk 00:59:53]}
{[%emt 00:01:16]} Bxf1 {[%clk 01:00:46]} {[%emt 00:00:09]} 16. Kxf1 {[%clk
01:00:13]} {[%emt 00:00:09]} h6 {[%clk 01:00:16]} {[%emt 00:01:01]} 17. h3
{[%clk 00:58:18]} {[%emt 00:02:25]} dxc4 {[%clk 00:57:26]} {[%emt 00:03:20]} 18.
bxc4 {[%clk 00:58:34]} {[%emt 00:00:14]} Qc6 {[%clk 00:57:22]} {[%emt
00:00:34]} 19. Kf2 {[%clk 00:58:32]} {[%emt 00:00:32]} Nb6 {[%clk 00:55:54]}
{[%emt 00:01:58]} 20. Qb1 {[%clk 00:47:29]} {[%emt 00:11:32]} h5 {[%clk
00:52:25]} {[%emt 00:03:59]} 21. Re5 {[%clk 00:46:07]} {[%emt 00:01:52]} Qa4
{[%clk 00:49:53]} {[%emt 00:03:03]} 22. Ba1 {[%clk 00:38:24]} {[%emt 00:08:13]}
Rfd8 {[%clk 00:47:38]} {[%emt 00:02:44]} 23. Rg5 {[%clk 00:37:10]} {[%emt
00:01:44]} Nxc4 {[%clk 00:42:05]} {[%emt 00:06:04]} 24. Nxc4 {[%emt 00:04:33]}
Rxc4 {[%clk 00:38:02]} {[%emt 00:01:59]} 25. Bxc4 {[%clk 00:36:10]} {[%emt
00:00:01]} Qxc4 {[%clk 00:38:17]} {[%emt 00:00:14]} 26. Rc5 {[%clk 00:35:54]}
{[%emt 00:00:46]} Ne4+ {[%clk 00:33:08]} {[%emt 00:05:39]} 27. Qxe4 {[%clk
00:36:03]} {[%emt 00:00:21]} Qxa2+ {[%clk 00:33:30]} {[%emt 00:00:08]} 28. Rc2
{[%clk 00:31:18]} {[%emt 00:05:15]} Qxa1 {[%clk 00:33:55]} {[%emt 00:00:05]} 29.
Rd2 {[%clk 00:30:55]} {[%emt 00:00:54]} b5 {[%clk 00:32:57]} {[%emt 00:01:27]}
30. f5 {[%clk 00:29:42]} {[%emt 00:01:43]} exf5 {[%clk 00:31:17]} {[%emt
00:02:10]} 31. Qxf5 {[%clk 00:30:10]} {[%emt 00:00:02]} Rxd4 {[%clk 00:30:27]}
{[%emt 00:01:20]} 32. Qc8+ {[%clk 00:30:32]} {[%emt 00:00:08]} Kh7 {[%clk
00:30:52]} {[%emt 00:00:05]} 33. Qf5+ {[%clk 00:31:00]} {[%emt 00:00:02]} Kh6
{[%clk 00:31:16]} {[%emt 00:00:06]} 34. Re2 {[%clk 00:30:36]} {[%emt 00:00:54]}
Qh1 {[%clk 00:27:47]} {[%emt 00:03:59]} 35. Qxf7 {[%clk 00:26:19]} {[%emt
00:04:47]} Qh2+ {[%clk 00:27:45]} {[%emt 00:00:32]} 36. Ke3 {[%clk 00:26:47]}
{[%emt 00:00:02]} Qg1+ {[%clk 00:27:55]} {[%emt 00:00:20]} 37. Rf2 {[%clk
00:27:03]} {[%emt 00:00:14]} Ra4 {[%clk 00:27:42]} {[%emt 00:00:43]} 38. Qe6+
{[%clk 00:22:22]} {[%emt 00:05:11]} g6 {[%clk 00:28:06]} {[%emt 00:00:07]} 39.
Qd6 {[%clk 00:22:51]} {[%emt 00:00:01]} Qe1+ {[%clk 00:27:12]} {[%emt
00:01:23]} 40. Re2 {[%clk 00:22:09]} {[%emt 00:01:13]} Qc3+ {[%clk 00:25:14]}
{[%emt 00:02:28]} 41. Kf2 {[%clk 00:22:30]} {[%emt 00:00:09]} Qd4+ {[%emt
00:01:00]} 0-1

[Event "Polofinale MCR junioru 2023"]
[Site "Czech Republic"]
[Date "2023.11.14"]
[Round "5.34"]
[White "Babula, Matej"]
[Black "Pistej, Tomas"]
[Result "1-0"]
[TimeControl "90 min per 40 moves + 15 min + 30 sec / move from move 1"]
[WhiteFideId "398322"]
[BlackFideId "23750740"]
[WhiteElo "1899"]
[BlackElo "1502"]

1. d4 {[%clk 01:30:56]} {[%emt 00:00:04]} d5 {[%clk 01:30:51]} {[%emt
00:00:10]} 2. Nc3 {[%clk 01:31:19]} {[%emt 00:00:06]} Nf6 {[%clk 01:31:01]}
{[%emt 00:00:21]} 3. Bf4 {[%clk 01:31:43]} {[%emt 00:00:05]} c6 {[%clk
01:30:56]} {[%emt 00:00:35]} 4. f3 {[%clk 01:31:20]} {[%emt 00:00:53]} Bf5
{[%clk 01:28:31]} {[%emt 00:02:55]} 5. g4 {[%clk 01:31:31]} {[%emt 00:00:19]}
Bg6 {[%clk 01:28:19]} {[%emt 00:00:41]} 6. h4 {[%clk 01:31:54]} {[%emt
00:00:07]} h5 {[%clk 01:26:39]} {[%emt 00:02:11]} 7. g5 {[%clk 01:32:07]}
{[%emt 00:00:17]} Nfd7 {[%clk 01:25:45]} {[%emt 00:01:24]} 8. e4 {[%clk
01:26:37]} {[%emt 00:06:01]} e6 {[%clk 01:23:00]} {[%emt 00:03:15]} 9. Qd2
{[%clk 01:21:37]} {[%emt 00:05:30]} Bb4 {[%clk 01:20:54]} {[%emt 00:02:36]} 10.
Bd3 {[%clk 01:13:05]} {[%emt 00:09:02]} c5 {[%clk 01:16:17]} {[%emt 00:05:06]}
11. exd5 {[%clk 00:52:24]} {[%emt 00:21:12]} cxd4 {[%clk 00:56:27]} {[%emt
00:20:20]} 12. Bxg6 {[%clk 00:50:02]} {[%emt 00:02:52]} e5 {[%clk 00:51:29]}
{[%emt 00:05:29]} 13. Be4 {[%clk 00:43:10]} {[%emt 00:07:21]} dxc3 {[%clk
00:44:42]} {[%emt 00:07:17]} 14. bxc3 {[%clk 00:43:32]} {[%emt 00:00:09]} Ba5
{[%clk 00:44:41]} {[%emt 00:00:30]} 15. Be3 {[%clk 00:41:40]} {[%emt 00:02:21]}
Qc8 {[%clk 00:39:42]} {[%emt 00:05:30]} 16. Ne2 {[%clk 00:40:51]} {[%emt
00:01:19]} Nb6 {[%clk 00:38:44]} {[%emt 00:01:28]} 17. Qd3 {[%clk 00:34:59]}
{[%emt 00:06:22]} N8d7 {[%clk 00:34:46]} {[%emt 00:04:28]} 18. O-O {[%clk
00:32:40]} {[%emt 00:02:49]} Na4 {[%clk 00:27:25]} {[%emt 00:07:51]} 19. Rab1
{[%clk 00:24:54]} {[%emt 00:08:17]} Nxc3 {[%clk 00:18:03]} {[%emt 00:09:52]} 20.
Nxc3 {[%clk 00:25:07]} {[%emt 00:00:17]} Bxc3 {[%clk 00:18:19]} {[%emt
00:00:14]} 21. d6 {[%clk 00:24:26]} {[%emt 00:01:11]} Nb6 {[%clk 00:16:13]}
{[%emt 00:02:36]} 22. d7+ {[%clk 00:22:04]} {[%emt 00:02:53]} 1-0

[Event "Polofinale MCR junioru 2023"]
[Site "Czech Republic"]
[Date "2023.11.14"]
[Round "5.35"]
[White "Meca, Viktor"]
[Black "Popov, Roman"]
[Result "0-1"]
[TimeControl "90 min per 40 moves + 15 min + 30 sec / move from move 1"]
[WhiteFideId "23739800"]
[BlackFideId "23732580"]
[WhiteElo "1642"]
[BlackElo "1889"]

1. e4 {[%clk 01:30:57]} {[%emt 00:00:02]} c6 {[%clk 01:30:50]} {[%emt
00:00:10]} 2. d4 {[%clk 01:31:20]} {[%emt 00:00:07]} d5 {[%clk 01:31:16]}
{[%emt 00:00:05]} 3. Nc3 {[%clk 01:31:45]} {[%emt 00:00:05]} dxe4 {[%clk
01:31:38]} {[%emt 00:00:08]} 4. Nxe4 {[%clk 01:32:10]} {[%emt 00:00:05]} Nf6
{[%clk 01:32:00]} {[%emt 00:00:07]} 5. Nxf6+ {[%clk 01:32:27]} {[%emt
00:00:13]} exf6 {[%clk 01:32:25]} {[%emt 00:00:06]} 6. Nf3 {[%clk 01:31:32]}
{[%emt 00:01:25]} Bd6 {[%clk 01:32:44]} {[%emt 00:00:11]} 7. Be2 {[%clk
01:29:32]} {[%emt 00:02:30]} O-O {[%clk 01:33:04]} {[%emt 00:00:10]} 8. O-O
{[%clk 01:29:49]} {[%emt 00:00:13]} Qc7 {[%clk 01:33:10]} {[%emt 00:00:24]} 9.
c4 {[%clk 01:28:03]} {[%emt 00:02:16]} Nd7 {[%clk 01:28:00]} {[%emt 00:05:40]}
10. Qc2 {[%clk 01:17:05]} {[%emt 00:11:27]} Re8 {[%clk 01:24:44]} {[%emt
00:03:44]} 11. Bd3 {[%clk 01:08:01]} {[%emt 00:09:35]} Nf8 {[%clk 01:24:21]}
{[%emt 00:00:53]} 12. h3 {[%clk 01:02:59]} {[%emt 00:05:33]} g6 {[%clk
01:14:46]} {[%emt 00:10:05]} 13. d5 {[%clk 00:52:23]} {[%emt 00:11:05]} b6
{[%clk 00:52:33]} {[%emt 00:22:42]} 14. dxc6 {[%clk 00:44:49]} {[%emt
00:08:04]} Qxc6 {[%clk 00:51:39]} {[%emt 00:01:24]} 15. Nd4 {[%clk 00:44:50]}
{[%emt 00:00:27]} Qc5 {[%clk 00:48:57]} {[%emt 00:03:13]} 16. Nb3 {[%clk
00:33:48]} {[%emt 00:11:33]} Qc7 {[%clk 00:46:58]} {[%emt 00:02:29]} 17. Be4
{[%clk 00:29:33]} {[%emt 00:04:45]} Bb7 {[%clk 00:45:53]} {[%emt 00:01:35]} 18.
Bxb7 {[%clk 00:29:57]} {[%emt 00:00:06]} Qxb7 {[%clk 00:46:14]} {[%emt
00:00:09]} 19. Bd2 {[%clk 00:20:33]} {[%emt 00:09:53]} Ne6 {[%clk 00:44:44]}
{[%emt 00:02:01]} 20. Rfe1 {[%clk 00:18:11]} {[%emt 00:02:51]} Re7 {[%clk
00:35:34]} {[%emt 00:09:40]} 21. Qe4 {[%clk 00:14:17]} {[%emt 00:04:24]} Qxe4
{[%clk 00:30:44]} {[%emt 00:05:21]} 22. Rxe4 {[%clk 00:14:40]} {[%emt
00:00:07]} f5 {[%clk 00:30:56]} {[%emt 00:00:18]} 23. Ree1 {[%clk 00:13:18]}
{[%emt 00:01:51]} Rc7 {[%clk 00:30:44]} {[%emt 00:00:42]} 24. Rac1 {[%clk
00:10:33]} {[%emt 00:03:15]} Rac8 {[%clk 00:30:21]} {[%emt 00:00:52]} 25. c5
{[%clk 00:10:05]} {[%emt 00:00:59]} Bxc5 {[%clk 00:15:42]} {[%emt 00:15:09]} 26.
Bc3 {[%clk 00:07:23]} {[%emt 00:03:12]} Bf8 {[%clk 00:13:47]} {[%emt 00:02:24]}
27. Rcd1 {[%clk 00:06:07]} {[%emt 00:01:46]} Bg7 {[%clk 00:13:26]} {[%emt
00:00:51]} 28. Bxg7 {[%clk 00:06:27]} {[%emt 00:00:11]} Kxg7 {[%clk 00:13:47]}
{[%emt 00:00:08]} 29. Rd2 {[%clk 00:04:32]} {[%emt 00:02:26]} Rc2 {[%clk
00:12:00]} {[%emt 00:02:15]} 30. Ree2 {[%clk 00:04:03]} {[%emt 00:00:59]} R2c4
{[%clk 00:09:32]} {[%emt 00:02:58]} 31. Rd7 {[%clk 00:03:04]} {[%emt 00:01:31]}
R8c7 {[%clk 00:08:37]} {[%emt 00:01:24]} 32. Rxc7 {[%clk 00:02:55]} {[%emt
00:00:39]} Nxc7 {[%clk 00:07:49]} {[%emt 00:01:18]} 33. g3 {[%clk 00:02:13]}
{[%emt 00:01:12]} Ne6 {[%clk 00:06:29]} {[%emt 00:01:50]} 34. f4 {[%clk
00:01:35]} {[%emt 00:01:07]} a5 {[%clk 00:06:24]} {[%emt 00:00:37]} 35. Re3
{[%emt 00:01:38]} a4 36. Nd2 {[%emt 00:00:02]} Rc5 {[%emt 00:00:06]} 37. Nb3
{[%emt 00:00:01]} Rc4 {[%emt 00:00:06]} 38. Kg2 Nd4 {[%emt 00:00:04]} 0-1